Workbook

Sheet Yahoo!ファイナンス
A1: 削除 | B1: 編集 | C1: コード・市場・名称 | D1: 業種 | E1: 保有数 | F1: 購入価格 | G1: 時価 | H1: 損益 | I1: EPS | J1: 1株配当 | K1: 配当利回り | L1: PER | M1: PBR
C2: 1605 | D2: 鉱業 | E2: 1 | F2: 1360 | G2: 1348 | H2: =-12-0.88% -> -12.0088 | I2: 252.47 | J2: 60 | K2: 0.0445 | L2: 5.34 | M2: 0.5
C3: 東証PRM
C4: (株)ＩＮＰＥＸ
C5: 2914 | D5: 食料品 | E5: 1 | F5: 2345.5 | G5: 2371.5 | H5: =26+1.11% -> 26.0111 | I5: 203.98 | J5: 150 | K5: 0.0633 | L5: 11.63 | M5: 1.14
C6: 東証PRM
C7: ＪＴ
C8: 4452 | D8: 化学 | E8: 1 | F8: 5866 | G8: 6015 | H8: =149+2.54% -> 149.0254 | I8: 234.54 | J8: 148 | K8: 0.0246 | L8: 25.65 | M8: 2.78
C9: 東証PRM
C10: 花王(株)
C11: 4503 | D11: 医薬品 | E11: 1 | F11: 1889 | G11: 1900 | H11: =11+0.58% -> 11.0058 | I11: 113.97 | J11: 60 | K11: 0.0316 | L11: 16.67 | M11: 2.25
C12: 東証PRM
C13: アステラス製薬(株)
C14: 4578 | D14: 医薬品 | E14: 1 | F14: 4428 | G14: 4468 | H14: =40+0.9% -> 40.009 | I14: 248.86 | J14: 100 | K14: 0.0224 | L14: 17.95 | M14: 1.09
C15: 東証PRM
C16: 大塚ホールディングス(株)
C17: 5108 | D17: ゴム製品 | E17: 1 | F17: 4823 | G17: 4857 | H17: =34+0.7% -> 34.007 | I17: 356.95 | J17: 170 | K17: 0.035 | L17: 13.61 | M17: 1.14
C18: 東証PRM
C19: (株)ブリヂストン
C20: 6301 | D20: 機械 | E20: 1 | F20: 2663 | G20: 2662.5 | H20: =-0.5-0.02% -> -0.5002 | I20: 239.3 | J20: 96 | K20: 0.0361 | L20: 11.13 | M20: 1.03
C21: 東証PRM
C22: コマツ
C23: 6326 | D23: 機械 | E23: 1 | F23: 1998 | G23: 2001 | H23: =3+0.15% -> 3.0015 | I23: 154.35 | J23: 0 | K23: 0 | L23: 12.96 | M23: 1.25
C24: 東証PRM
C25: (株)クボタ
C26: 8058 | D26: 卸売業 | E26: 1 | F26: 4119 | G26: 4163 | H26: =44+1.07% -> 44.0107 | I26: 576.6 | J26: 150 | K26: 0.036 | L26: 7.22 | M26: 0.81
C27: 東証PRM
C28: 三菱商事(株)
C29: 8316 | D29: 銀行業 | E29: 1 | F29: 4210 | G29: 4226 | H29: =16+0.38% -> 16.0038 | I29: 532.5 | J29: 220 | K29: 0.0521 | L29: 7.94 | M29: 0.47
C30: 東証PRM
C31: (株)三井住友フィナンシャルグループ
C32: 9432 | D32: 情報・通信 | E32: 1 | F32: 3888 | G32: 3876 | H32: =-12-0.31% -> -12.0031 | I32: 336.02 | J32: 120 | K32: 0.031 | L32: 11.54 | M32: 1.61
C33: 東証PRM
C34: 日本電信電話(株)
C35: 8001 | D35: 卸売業 | E35: 1 | F35: 3597 | G35: 3616 | H35: =19+0.53% -> 19.0053 | I35: 476.39 | J35: 130 | K35: 0.036 | L35: 7.59 | M35: 1.17
C36: 東証PRM
C37: 伊藤忠商事(株)
C38: 8031 | D38: 卸売業 | E38: 1 | F38: 3091 | G38: 3128 | H38: =37+1.2% -> 37.012 | I38: 501.64 | J38: 120 | K38: 0.0384 | L38: 6.24 | M38: 0.86
C39: 東証PRM
C40: 三井物産(株)
C41: 8306 | D41: 銀行業 | E41: 1 | F41: 687.2 | G41: 692.6 | H41: =5.4+0.79% -> 5.4079 | I41: 0 | J41: 32 | K41: 0.0462 | L41: 0 | M41: 0.52
C42: 東証PRM
C43: (株)三菱ＵＦＪフィナンシャル・グループ
C44: 8697 | D44: その他金融業 | E44: 1 | F44: 1957.5 | G44: 1960 | H44: =2.5+0.13% -> 2.5013 | I44: 85.36 | J44: 52 | K44: 0.0265 | L44: 22.96 | M44: 3.42
C45: 東証PRM
C46: (株)日本取引所グループ
C47: 8766 | D47: 保険業 | E47: 1 | F47: 7653 | G47: 7796 | H47: =143+1.87% -> 143.0187 | I47: 637.07 | J47: 300 | K47: 0.0385 | L47: 12.24 | M47: 1.38
C48: 東証PRM
C49: 東京海上ホールディングス(株)
C50: 9433 | D50: 情報・通信 | E50: 1 | F50: 4305 | G50: 4251 | H50: =-54-1.25% -> -54.0125 | I50: 312.13 | J50: 135 | K50: 0.0318 | L50: 13.62 | M50: 1.88
C51: 東証PRM
C52: ＫＤＤＩ(株)

Sheet 集計
A1: 高配当株ポートフォリオ | D1: 合計 | E1: 2022-08-28 | F1: =COUNT(F4:F53) -> 50 | G1: =SUM(G4:G53) -> 58880.2 | H1: =SUM(H4:H53) -> 59331.6 | I1: =SUM(I4:I53) -> 1 | J1: =SUM(J4:J53) -> 451.4949 | K1: =J1/G1 -> 0.007668025924 | L1: =M1/F1 -> 40.86 | M1: =SUM(M4:M53) -> 2043 | N1: =SUM(N4:N53) -> 1 | O1: =M1/G1 -> 0.03469757236 | Q1: セクター別配当金構成比
B3: コード | C3: 市場 | D3: 名称 | E3: 業種 | F3: 保有株式数 | G3: 取得価額 | H3: 時価 | I3: 時価構成比 | J3: 損益 | K3: 損益率 | L3: 1株配当 | M3: 受取配当金 | N3: 配当金構成比 | O3: 簿価利回り | R3: 行ラベル | S3: コード個数 | T3: 時価合計 | U3: 取得価額合計 | V3: 受取配当金合計 | W3: 時価 | X3: 配当金
A4: 1 | B4: =INDEX('Yahoo!ファイナンス'!C:C, ROW()*3-10) -> 1605 | C4: =INDEX('Yahoo!ファイナンス'!C:C, ROW()*3-9) -> 東証PRM | D4: =INDEX('Yahoo!ファイナンス'!C:C, ROW()*3-8) -> (株)ＩＮＰＥＸ | E4: =INDEX('Yahoo!ファイナンス'!D:D, ROW()*3-10) -> 鉱業 | F4: =INDEX('Yahoo!ファイナンス'!E:E, ROW()*3-10) -> 1 | G4: =INDEX('Yahoo!ファイナンス'!F:F, ROW()*3-10) -> 1360 | H4: =INDEX('Yahoo!ファイナンス'!G:G, ROW()*3-10) -> 1348 | I4: =IF(H4="---",0,H4/$H$1) -> 0.02271976485 | J4: =INDEX('Yahoo!ファイナンス'!H:H, ROW()*3-10) -> -12.0088 | K4: =IF(OR(J4="---",J4=0),"---",J4/H4) -> -0.008908605341 | L4: =INDEX('Yahoo!ファイナンス'!J:J, ROW()*3-10) -> 60 | M4: =IF(F4="---",0,F4*L4) -> 60 | N4: =IFERROR(M4/$M$1,"") -> 0.02936857562 | O4: =IF(AND(G4<>"---",G4>0),M4/(G4*F4),0) -> 0.04411764706 | Q4: 1 | R4: 不動産業 | S4: =COUNTIFS(E:E,R4,F:F,"<>---") -> 0 | T4: =SUMIF(集計!E:E,R4,集計!H:H) -> 0 | U4: =SUMIF(集計!E:E,R4,集計!G:G) -> 0 | V4: =SUMIF(集計!E:E,R4,集計!M:M) -> 0 | W4: =T4/$T$15 -> 0 | X4: =V4/$V$15 -> 0
A5: 2 | B5: =INDEX('Yahoo!ファイナンス'!C:C, ROW()*3-10) -> 2914 | C5: =INDEX('Yahoo!ファイナンス'!C:C, ROW()*3-9) -> 東証PRM | D5: =INDEX('Yahoo!ファイナンス'!C:C, ROW()*3-8) -> ＪＴ | E5: =INDEX('Yahoo!ファイナンス'!D:D, ROW()*3-10) -> 食料品 | F5: =INDEX('Yahoo!ファイナンス'!E:E, ROW()*3-10) -> 1 | G5: =INDEX('Yahoo!ファイナンス'!F:F, ROW()*3-10) -> 2345.5 | H5: =INDEX('Yahoo!ファイナンス'!G:G, ROW()*3-10) -> 2371.5 | I5: =IF(H5="---",0,H5/$H$1) -> 0.03997026879 | J5: =INDEX('Yahoo!ファイナンス'!H:H, ROW()*3-10) -> 26.0111 | K5: =IF(OR(J5="---",J5=0),"---",J5/H5) -> 0.01096820578 | L5: =INDEX('Yahoo!ファイナンス'!J:J, ROW()*3-10) -> 150 | M5: =IF(F5="---",0,F5*L5) -> 150 | N5: =IFERROR(M5/$M$1,"") -> 0.07342143906 | O5: =IF(AND(G5<>"---",G5>0),M5/(G5*F5),0) -> 0.06395224899 | Q5: 2 | R5: サービス業 | S5: =COUNTIFS(E:E,R5,F:F,"<>---") -> 0 | T5: =SUMIF(集計!E:E,R5,集計!H:H) -> 0 | U5: =SUMIF(集計!E:E,R5,集計!G:G) -> 0 | V5: =SUMIF(集計!E:E,R5,集計!M:M) -> 0 | W5: =T5/$T$15 -> 0 | X5: =V5/$V$15 -> 0
A6: 3 | B6: =INDEX('Yahoo!ファイナンス'!C:C, ROW()*3-10) -> 4452 | C6: =INDEX('Yahoo!ファイナンス'!C:C, ROW()*3-9) -> 東証PRM | D6: =INDEX('Yahoo!ファイナンス'!C:C, ROW()*3-8) -> 花王(株) | E6: =INDEX('Yahoo!ファイナンス'!D:D, ROW()*3-10) -> 化学 | F6: =INDEX('Yahoo!ファイナンス'!E:E, ROW()*3-10) -> 1 | G6: =INDEX('Yahoo!ファイナンス'!F:F, ROW()*3-10) -> 5866 | H6: =INDEX('Yahoo!ファイナンス'!G:G, ROW()*3-10) -> 6015 | I6: 0.1013793661 | J6: =INDEX('Yahoo!ファイナンス'!H:H, ROW()*3-10) -> 149.0254 | K6: 0.0247756276 | L6: =INDEX('Yahoo!ファイナンス'!J:J, ROW()*3-10) -> 148 | M6: 148 | N6: 0.07244248654 | O6: 0.02523013979 | Q6: 3 | R6: その他金融業 | S6: =COUNTIFS(E:E,R6,F:F,"<>---") -> 1 | T6: =SUMIF(集計!E:E,R6,集計!H:H) -> 1960 | U6: =SUMIF(集計!E:E,R6,集計!G:G) -> 1957.5 | V6: =SUMIF(集計!E:E,R6,集計!M:M) -> 52 | W6: =T6/$T$15 -> 0.03303467292 | X6: =V6/$V$15 -> 0.02545276554
A7: 4 | B7: =INDEX('Yahoo!ファイナンス'!C:C, ROW()*3-10) -> 4503 | C7: =INDEX('Yahoo!ファイナンス'!C:C, ROW()*3-9) -> 東証PRM | D7: =INDEX('Yahoo!ファイナンス'!C:C, ROW()*3-8) -> アステラス製薬(株) | E7: =INDEX('Yahoo!ファイナンス'!D:D, ROW()*3-10) -> 医薬品 | F7: =INDEX('Yahoo!ファイナンス'!E:E, ROW()*3-10) -> 1 | G7: =INDEX('Yahoo!ファイナンス'!F:F, ROW()*3-10) -> 1889 | H7: =INDEX('Yahoo!ファイナンス'!G:G, ROW()*3-10) -> 1900 | I7: 0.03202340743 | J7: =INDEX('Yahoo!ファイナンス'!H:H, ROW()*3-10) -> 11.0058 | K7: 0.005792526316 | L7: =INDEX('Yahoo!ファイナンス'!J:J, ROW()*3-10) -> 60 | M7: 60 | N7: 0.02936857562 | O7: 0.03176283748 | Q7: 4 | R7: 化学 | S7: =COUNTIFS(E:E,R7,F:F,"<>---") -> 1 | T7: =SUMIF(集計!E:E,R7,集計!H:H) -> 6015 | U7: =SUMIF(集計!E:E,R7,集計!G:G) -> 5866 | V7: =SUMIF(集計!E:E,R7,集計!M:M) -> 148 | W7: =T7/$T$15 -> 0.1013793661 | X7: =V7/$V$15 -> 0.07244248654
A8: 5 | B8: =INDEX('Yahoo!ファイナンス'!C:C, ROW()*3-10) -> 4578 | C8: =INDEX('Yahoo!ファイナンス'!C:C, ROW()*3-9) -> 東証PRM | D8: =INDEX('Yahoo!ファイナンス'!C:C, ROW()*3-8) -> 大塚ホールディングス(株) | E8: =INDEX('Yahoo!ファイナンス'!D:D, ROW()*3-10) -> 医薬品 | F8: =INDEX('Yahoo!ファイナンス'!E:E, ROW()*3-10) -> 1 | G8: =INDEX('Yahoo!ファイナンス'!F:F, ROW()*3-10) -> 4428 | H8: =INDEX('Yahoo!ファイナンス'!G:G, ROW()*3-10) -> 4468 | I8: 0.07530557072 | J8: =INDEX('Yahoo!ファイナンス'!H:H, ROW()*3-10) -> 40.009 | K8: 0.008954565801 | L8: =INDEX('Yahoo!ファイナンス'!J:J, ROW()*3-10) -> 100 | M8: 100 | N8: 0.04894762604 | O8: 0.02258355917 | Q8: 5 | R8: 食料品 | S8: =COUNTIFS(E:E,R8,F:F,"<>---") -> 1 | T8: =SUMIF(集計!E:E,R8,集計!H:H) -> 2371.5 | U8: =SUMIF(集計!E:E,R8,集計!G:G) -> 2345.5 | V8: =SUMIF(集計!E:E,R8,集計!M:M) -> 150 | W8: =T8/$T$15 -> 0.03997026879 | X8: =V8/$V$15 -> 0.07342143906
A9: 6 | B9: =INDEX('Yahoo!ファイナンス'!C:C, ROW()*3-10) -> 5108 | C9: =INDEX('Yahoo!ファイナンス'!C:C, ROW()*3-9) -> 東証PRM | D9: =INDEX('Yahoo!ファイナンス'!C:C, ROW()*3-8) -> (株)ブリヂストン | E9: =INDEX('Yahoo!ファイナンス'!D:D, ROW()*3-10) -> ゴム製品 | F9: =INDEX('Yahoo!ファイナンス'!E:E, ROW()*3-10) -> 1 | G9: =INDEX('Yahoo!ファイナンス'!F:F, ROW()*3-10) -> 4823 | H9: =INDEX('Yahoo!ファイナンス'!G:G, ROW()*3-10) -> 4857 | I9: 0.08186194203 | J9: =INDEX('Yahoo!ファイナンス'!H:H, ROW()*3-10) -> 34.007 | K9: 0.007001647107 | L9: =INDEX('Yahoo!ファイナンス'!J:J, ROW()*3-10) -> 170 | M9: 170 | N9: 0.08321096427 | O9: 0.0352477711 | Q9: 6 | R9: 医薬品 | S9: =COUNTIFS(E:E,R9,F:F,"<>---") -> 2 | T9: =SUMIF(集計!E:E,R9,集計!H:H) -> 6368 | U9: =SUMIF(集計!E:E,R9,集計!G:G) -> 6317 | V9: =SUMIF(集計!E:E,R9,集計!M:M) -> 160 | W9: =T9/$T$15 -> 0.1073289781 | X9: =V9/$V$15 -> 0.07831620166
A10: 7 | B10: =INDEX('Yahoo!ファイナンス'!C:C, ROW()*3-10) -> 6301 | C10: =INDEX('Yahoo!ファイナンス'!C:C, ROW()*3-9) -> 東証PRM | D10: =INDEX('Yahoo!ファイナンス'!C:C, ROW()*3-8) -> コマツ | E10: =INDEX('Yahoo!ファイナンス'!D:D, ROW()*3-10) -> 機械 | F10: =INDEX('Yahoo!ファイナンス'!E:E, ROW()*3-10) -> 1 | G10: =INDEX('Yahoo!ファイナンス'!F:F, ROW()*3-10) -> 2663 | H10: =INDEX('Yahoo!ファイナンス'!G:G, ROW()*3-10) -> 2662.5 | I10: 0.04487490646 | J10: =INDEX('Yahoo!ファイナンス'!H:H, ROW()*3-10) -> -0.5002 | K10: -0.0001878685446 | L10: =INDEX('Yahoo!ファイナンス'!J:J, ROW()*3-10) -> 96 | M10: 96 | N10: 0.046989721 | O10: 0.03604956816 | Q10: 7 | R10: 銀行業 | S10: =COUNTIFS(E:E,R10,F:F,"<>---") -> 2 | T10: =SUMIF(集計!E:E,R10,集計!H:H) -> 4918.6 | U10: =SUMIF(集計!E:E,R10,集計!G:G) -> 4897.2 | V10: =SUMIF(集計!E:E,R10,集計!M:M) -> 252 | W10: =T10/$T$15 -> 0.08290017461 | X10: =V10/$V$15 -> 0.1233480176
A11: 8 | B11: =INDEX('Yahoo!ファイナンス'!C:C, ROW()*3-10) -> 6326 | C11: =INDEX('Yahoo!ファイナンス'!C:C, ROW()*3-9) -> 東証PRM | D11: =INDEX('Yahoo!ファイナンス'!C:C, ROW()*3-8) -> (株)クボタ | E11: =INDEX('Yahoo!ファイナンス'!D:D, ROW()*3-10) -> 機械 | F11: =INDEX('Yahoo!ファイナンス'!E:E, ROW()*3-10) -> 1 | G11: =INDEX('Yahoo!ファイナンス'!F:F, ROW()*3-10) -> 1998 | H11: =INDEX('Yahoo!ファイナンス'!G:G, ROW()*3-10) -> 2001 | I11: 0.03372570435 | J11: =INDEX('Yahoo!ファイナンス'!H:H, ROW()*3-10) -> 3.0015 | K11: 0.0015 | L11: =INDEX('Yahoo!ファイナンス'!J:J, ROW()*3-10) -> 0 | M11: 0 | N11: 0 | O11: 0 | Q11: 8 | R11: 情報・通信 | S11: =COUNTIFS(E:E,R11,F:F,"<>---") -> 2 | T11: =SUMIF(集計!E:E,R11,集計!H:H) -> 8127 | U11: =SUMIF(集計!E:E,R11,集計!G:G) -> 8193 | V11: =SUMIF(集計!E:E,R11,集計!M:M) -> 255 | W11: =T11/$T$15 -> 0.1369759117 | X11: =V11/$V$15 -> 0.1248164464
A12: 9 | B12: =INDEX('Yahoo!ファイナンス'!C:C, ROW()*3-10) -> 8058 | C12: =INDEX('Yahoo!ファイナンス'!C:C, ROW()*3-9) -> 東証PRM | D12: =INDEX('Yahoo!ファイナンス'!C:C, ROW()*3-8) -> 三菱商事(株) | E12: =INDEX('Yahoo!ファイナンス'!D:D, ROW()*3-10) -> 卸売業 | F12: =INDEX('Yahoo!ファイナンス'!E:E, ROW()*3-10) -> 1 | G12: =INDEX('Yahoo!ファイナンス'!F:F, ROW()*3-10) -> 4119 | H12: =INDEX('Yahoo!ファイナンス'!G:G, ROW()*3-10) -> 4163 | I12: 0.07016497111 | J12: =INDEX('Yahoo!ファイナンス'!H:H, ROW()*3-10) -> 44.0107 | K12: 0.01057187125 | L12: =INDEX('Yahoo!ファイナンス'!J:J, ROW()*3-10) -> 150 | M12: 150 | N12: 0.07342143906 | O12: 0.03641660597 | Q12: 9 | R12: 保険業 | S12: =COUNTIFS(E:E,R12,F:F,"<>---") -> 1 | T12: =SUMIF(集計!E:E,R12,集計!H:H) -> 7796 | U12: =SUMIF(集計!E:E,R12,集計!G:G) -> 7653 | V12: =SUMIF(集計!E:E,R12,集計!M:M) -> 300 | W12: =T12/$T$15 -> 0.131397097 | X12: =V12/$V$15 -> 0.1468428781
A13: 10 | B13: =INDEX('Yahoo!ファイナンス'!C:C, ROW()*3-10) -> 8316 | C13: =INDEX('Yahoo!ファイナンス'!C:C, ROW()*3-9) -> 東証PRM | D13: =INDEX('Yahoo!ファイナンス'!C:C, ROW()*3-8) -> (株)三井住友フィナンシャルグループ | E13: =INDEX('Yahoo!ファイナンス'!D:D, ROW()*3-10) -> 銀行業 | F13: =INDEX('Yahoo!ファイナンス'!E:E, ROW()*3-10) -> 1 | G13: =INDEX('Yahoo!ファイナンス'!F:F, ROW()*3-10) -> 4210 | H13: =INDEX('Yahoo!ファイナンス'!G:G, ROW()*3-10) -> 4226 | I13: 0.07122679988 | J13: =INDEX('Yahoo!ファイナンス'!H:H, ROW()*3-10) -> 16.0038 | K13: 0.003786985329 | L13: =INDEX('Yahoo!ファイナンス'!J:J, ROW()*3-10) -> 220 | M13: 220 | N13: 0.1076847773 | O13: 0.05225653207 | Q13: 10 | R13: 卸売業 | S13: =COUNTIFS(E:E,R13,F:F,"<>---") -> 3 | T13: =SUMIF(集計!E:E,R13,集計!H:H) -> 10907 | U13: =SUMIF(集計!E:E,R13,集計!G:G) -> 10807 | V13: =SUMIF(集計!E:E,R13,集計!M:M) -> 400 | W13: =T13/$T$15 -> 0.183831213 | X13: =V13/$V$15 -> 0.1957905042
A14: 11 | B14: =INDEX('Yahoo!ファイナンス'!C:C, ROW()*3-10) -> 9432 | C14: =INDEX('Yahoo!ファイナンス'!C:C, ROW()*3-9) -> 東証PRM | D14: =INDEX('Yahoo!ファイナンス'!C:C, ROW()*3-8) -> 日本電信電話(株) | E14: =INDEX('Yahoo!ファイナンス'!D:D, ROW()*3-10) -> 情報・通信 | F14: =INDEX('Yahoo!ファイナンス'!E:E, ROW()*3-10) -> 1 | G14: =INDEX('Yahoo!ファイナンス'!F:F, ROW()*3-10) -> 3888 | H14: =INDEX('Yahoo!ファイナンス'!G:G, ROW()*3-10) -> 3876 | I14: 0.06532775115 | J14: =INDEX('Yahoo!ファイナンス'!H:H, ROW()*3-10) -> -12.0031 | K14: -0.003096775026 | L14: =INDEX('Yahoo!ファイナンス'!J:J, ROW()*3-10) -> 120 | M14: 120 | N14: 0.05873715125 | O14: 0.03086419753 | Q14: 11 | R14: その他 | S14: =S15-SUM(S4:S13) -> 37 | T14: =T15-SUM(T4:T13) -> 10868.5 | U14: 10844 | V14: 326 | W14: 0.1831823177 | X14: 0.1595692609
A15: 12 | B15: =INDEX('Yahoo!ファイナンス'!C:C, ROW()*3-10) -> 8001 | C15: =INDEX('Yahoo!ファイナンス'!C:C, ROW()*3-9) -> 東証PRM | D15: =INDEX('Yahoo!ファイナンス'!C:C, ROW()*3-8) -> 伊藤忠商事(株) | E15: =INDEX('Yahoo!ファイナンス'!D:D, ROW()*3-10) -> 卸売業 | F15: =INDEX('Yahoo!ファイナンス'!E:E, ROW()*3-10) -> 1 | G15: =INDEX('Yahoo!ファイナンス'!F:F, ROW()*3-10) -> 3597 | H15: =INDEX('Yahoo!ファイナンス'!G:G, ROW()*3-10) -> 3616 | I15: 0.06094560066 | J15: =INDEX('Yahoo!ファイナンス'!H:H, ROW()*3-10) -> 19.0053 | K15: 0.005255890487 | L15: =INDEX('Yahoo!ファイナンス'!J:J, ROW()*3-10) -> 130 | M15: 130 | N15: 0.06363191385 | O15: 0.0361412288 | R15: 総計 | S15: =COUNT(F:F)-1 -> 50 | T15: =SUM(H:H)-H1 -> 59331.6 | U15: =SUM(G:G)-G1 -> 58880.2 | V15: =SUM(M:M)-M1 -> 2043 | W15: 1 | X15: 1
A16: 13 | B16: =INDEX('Yahoo!ファイナンス'!C:C, ROW()*3-10) -> 8031 | C16: =INDEX('Yahoo!ファイナンス'!C:C, ROW()*3-9) -> 東証PRM | D16: =INDEX('Yahoo!ファイナンス'!C:C, ROW()*3-8) -> 三井物産(株) | E16: =INDEX('Yahoo!ファイナンス'!D:D, ROW()*3-10) -> 卸売業 | F16: =INDEX('Yahoo!ファイナンス'!E:E, ROW()*3-10) -> 1 | G16: =INDEX('Yahoo!ファイナンス'!F:F, ROW()*3-10) -> 3091 | H16: =INDEX('Yahoo!ファイナンス'!G:G, ROW()*3-10) -> 3128 | I16: 0.05272064128 | J16: =INDEX('Yahoo!ファイナンス'!H:H, ROW()*3-10) -> 37.012 | K16: 0.01183248082 | L16: =INDEX('Yahoo!ファイナンス'!J:J, ROW()*3-10) -> 120 | M16: 120 | N16: 0.05873715125 | O16: 0.03882238758
A17: 14 | B17: =INDEX('Yahoo!ファイナンス'!C:C, ROW()*3-10) -> 8306 | C17: =INDEX('Yahoo!ファイナンス'!C:C, ROW()*3-9) -> 東証PRM | D17: =INDEX('Yahoo!ファイナンス'!C:C, ROW()*3-8) -> (株)三菱ＵＦＪフィナンシャル・グループ | E17: =INDEX('Yahoo!ファイナンス'!D:D, ROW()*3-10) -> 銀行業 | F17: =INDEX('Yahoo!ファイナンス'!E:E, ROW()*3-10) -> 1 | G17: =INDEX('Yahoo!ファイナンス'!F:F, ROW()*3-10) -> 687.2 | H17: =INDEX('Yahoo!ファイナンス'!G:G, ROW()*3-10) -> 692.6 | I17: 0.01167337473 | J17: =INDEX('Yahoo!ファイナンス'!H:H, ROW()*3-10) -> 5.4079 | K17: 0.007808114352 | L17: =INDEX('Yahoo!ファイナンス'!J:J, ROW()*3-10) -> 32 | M17: 32 | N17: 0.01566324033 | O17: 0.04656577416
A18: 15 | B18: =INDEX('Yahoo!ファイナンス'!C:C, ROW()*3-10) -> 8697 | C18: =INDEX('Yahoo!ファイナンス'!C:C, ROW()*3-9) -> 東証PRM | D18: =INDEX('Yahoo!ファイナンス'!C:C, ROW()*3-8) -> (株)日本取引所グループ | E18: =INDEX('Yahoo!ファイナンス'!D:D, ROW()*3-10) -> その他金融業 | F18: =INDEX('Yahoo!ファイナンス'!E:E, ROW()*3-10) -> 1 | G18: =INDEX('Yahoo!ファイナンス'!F:F, ROW()*3-10) -> 1957.5 | H18: =INDEX('Yahoo!ファイナンス'!G:G, ROW()*3-10) -> 1960 | I18: 0.03303467292 | J18: =INDEX('Yahoo!ファイナンス'!H:H, ROW()*3-10) -> 2.5013 | K18: 0.001276173469 | L18: =INDEX('Yahoo!ファイナンス'!J:J, ROW()*3-10) -> 52 | M18: 52 | N18: 0.02545276554 | O18: 0.02656449553
A19: 16 | B19: =INDEX('Yahoo!ファイナンス'!C:C, ROW()*3-10) -> 8766 | C19: =INDEX('Yahoo!ファイナンス'!C:C, ROW()*3-9) -> 東証PRM | D19: =INDEX('Yahoo!ファイナンス'!C:C, ROW()*3-8) -> 東京海上ホールディングス(株) | E19: =INDEX('Yahoo!ファイナンス'!D:D, ROW()*3-10) -> 保険業 | F19: =INDEX('Yahoo!ファイナンス'!E:E, ROW()*3-10) -> 1 | G19: =INDEX('Yahoo!ファイナンス'!F:F, ROW()*3-10) -> 7653 | H19: =INDEX('Yahoo!ファイナンス'!G:G, ROW()*3-10) -> 7796 | I19: 0.131397097 | J19: =INDEX('Yahoo!ファイナンス'!H:H, ROW()*3-10) -> 143.0187 | K19: 0.01834513853 | L19: =INDEX('Yahoo!ファイナンス'!J:J, ROW()*3-10) -> 300 | M19: 300 | N19: 0.1468428781 | O19: 0.0392003136
A20: 17 | B20: =INDEX('Yahoo!ファイナンス'!C:C, ROW()*3-10) -> 9433 | C20: =INDEX('Yahoo!ファイナンス'!C:C, ROW()*3-9) -> 東証PRM | D20: =INDEX('Yahoo!ファイナンス'!C:C, ROW()*3-8) -> ＫＤＤＩ(株) | E20: =INDEX('Yahoo!ファイナンス'!D:D, ROW()*3-10) -> 情報・通信 | F20: =INDEX('Yahoo!ファイナンス'!E:E, ROW()*3-10) -> 1 | G20: =INDEX('Yahoo!ファイナンス'!F:F, ROW()*3-10) -> 4305 | H20: =INDEX('Yahoo!ファイナンス'!G:G, ROW()*3-10) -> 4251 | I20: 0.07164816051 | J20: =INDEX('Yahoo!ファイナンス'!H:H, ROW()*3-10) -> -54.0125 | K20: -0.01270583392 | L20: =INDEX('Yahoo!ファイナンス'!J:J, ROW()*3-10) -> 135 | M20: 135 | N20: 0.06607929515 | O20: 0.03135888502
A21: 18 | B21: =INDEX('Yahoo!ファイナンス'!C:C, ROW()*3-10) -> 0 | C21: =INDEX('Yahoo!ファイナンス'!C:C, ROW()*3-9) -> 0 | D21: =INDEX('Yahoo!ファイナンス'!C:C, ROW()*3-8) -> 0 | E21: =INDEX('Yahoo!ファイナンス'!D:D, ROW()*3-10) -> 0 | F21: =INDEX('Yahoo!ファイナンス'!E:E, ROW()*3-10) -> 0 | G21: =INDEX('Yahoo!ファイナンス'!F:F, ROW()*3-10) -> 0 | H21: =INDEX('Yahoo!ファイナンス'!G:G, ROW()*3-10) -> 0 | I21: 0 | J21: =INDEX('Yahoo!ファイナンス'!H:H, ROW()*3-10) -> 0 | K21: --- | L21: =INDEX('Yahoo!ファイナンス'!J:J, ROW()*3-10) -> 0 | M21: 0 | N21: 0 | O21: 0
A22: 19 | B22: =INDEX('Yahoo!ファイナンス'!C:C, ROW()*3-10) -> 0 | C22: =INDEX('Yahoo!ファイナンス'!C:C, ROW()*3-9) -> 0 | D22: =INDEX('Yahoo!ファイナンス'!C:C, ROW()*3-8) -> 0 | E22: =INDEX('Yahoo!ファイナンス'!D:D, ROW()*3-10) -> 0 | F22: =INDEX('Yahoo!ファイナンス'!E:E, ROW()*3-10) -> 0 | G22: =INDEX('Yahoo!ファイナンス'!F:F, ROW()*3-10) -> 0 | H22: =INDEX('Yahoo!ファイナンス'!G:G, ROW()*3-10) -> 0 | I22: 0 | J22: =INDEX('Yahoo!ファイナンス'!H:H, ROW()*3-10) -> 0 | K22: --- | L22: =INDEX('Yahoo!ファイナンス'!J:J, ROW()*3-10) -> 0 | M22: 0 | N22: 0 | O22: 0
A23: 20 | B23: =INDEX('Yahoo!ファイナンス'!C:C, ROW()*3-10) -> 0 | C23: =INDEX('Yahoo!ファイナンス'!C:C, ROW()*3-9) -> 0 | D23: =INDEX('Yahoo!ファイナンス'!C:C, ROW()*3-8) -> 0 | E23: =INDEX('Yahoo!ファイナンス'!D:D, ROW()*3-10) -> 0 | F23: =INDEX('Yahoo!ファイナンス'!E:E, ROW()*3-10) -> 0 | G23: =INDEX('Yahoo!ファイナンス'!F:F, ROW()*3-10) -> 0 | H23: =INDEX('Yahoo!ファイナンス'!G:G, ROW()*3-10) -> 0 | I23: 0 | J23: =INDEX('Yahoo!ファイナンス'!H:H, ROW()*3-10) -> 0 | K23: --- | L23: =INDEX('Yahoo!ファイナンス'!J:J, ROW()*3-10) -> 0 | M23: 0 | N23: 0 | O23: 0
A24: 21 | B24: =INDEX('Yahoo!ファイナンス'!C:C, ROW()*3-10) -> 0 | C24: =INDEX('Yahoo!ファイナンス'!C:C, ROW()*3-9) -> 0 | D24: =INDEX('Yahoo!ファイナンス'!C:C, ROW()*3-8) -> 0 | E24: =INDEX('Yahoo!ファイナンス'!D:D, ROW()*3-10) -> 0 | F24: =INDEX('Yahoo!ファイナンス'!E:E, ROW()*3-10) -> 0 | G24: =INDEX('Yahoo!ファイナンス'!F:F, ROW()*3-10) -> 0 | H24: =INDEX('Yahoo!ファイナンス'!G:G, ROW()*3-10) -> 0 | I24: 0 | J24: =INDEX('Yahoo!ファイナンス'!H:H, ROW()*3-10) -> 0 | K24: --- | L24: =INDEX('Yahoo!ファイナンス'!J:J, ROW()*3-10) -> 0 | M24: 0 | N24: 0 | O24: 0
A25: 22 | B25: =INDEX('Yahoo!ファイナンス'!C:C, ROW()*3-10) -> 0 | C25: =INDEX('Yahoo!ファイナンス'!C:C, ROW()*3-9) -> 0 | D25: =INDEX('Yahoo!ファイナンス'!C:C, ROW()*3-8) -> 0 | E25: =INDEX('Yahoo!ファイナンス'!D:D, ROW()*3-10) -> 0 | F25: =INDEX('Yahoo!ファイナンス'!E:E, ROW()*3-10) -> 0 | G25: =INDEX('Yahoo!ファイナンス'!F:F, ROW()*3-10) -> 0 | H25: =INDEX('Yahoo!ファイナンス'!G:G, ROW()*3-10) -> 0 | I25: 0 | J25: =INDEX('Yahoo!ファイナンス'!H:H, ROW()*3-10) -> 0 | K25: --- | L25: =INDEX('Yahoo!ファイナンス'!J:J, ROW()*3-10) -> 0 | M25: 0 | N25: 0 | O25: 0
A26: 23 | B26: =INDEX('Yahoo!ファイナンス'!C:C, ROW()*3-10) -> 0 | C26: =INDEX('Yahoo!ファイナンス'!C:C, ROW()*3-9) -> 0 | D26: =INDEX('Yahoo!ファイナンス'!C:C, ROW()*3-8) -> 0 | E26: =INDEX('Yahoo!ファイナンス'!D:D, ROW()*3-10) -> 0 | F26: =INDEX('Yahoo!ファイナンス'!E:E, ROW()*3-10) -> 0 | G26: =INDEX('Yahoo!ファイナンス'!F:F, ROW()*3-10) -> 0 | H26: =INDEX('Yahoo!ファイナンス'!G:G, ROW()*3-10) -> 0 | I26: 0 | J26: =INDEX('Yahoo!ファイナンス'!H:H, ROW()*3-10) -> 0 | K26: --- | L26: =INDEX('Yahoo!ファイナンス'!J:J, ROW()*3-10) -> 0 | M26: 0 | N26: 0 | O26: 0
A27: 24 | B27: =INDEX('Yahoo!ファイナンス'!C:C, ROW()*3-10) -> 0 | C27: =INDEX('Yahoo!ファイナンス'!C:C, ROW()*3-9) -> 0 | D27: =INDEX('Yahoo!ファイナンス'!C:C, ROW()*3-8) -> 0 | E27: =INDEX('Yahoo!ファイナンス'!D:D, ROW()*3-10) -> 0 | F27: =INDEX('Yahoo!ファイナンス'!E:E, ROW()*3-10) -> 0 | G27: =INDEX('Yahoo!ファイナンス'!F:F, ROW()*3-10) -> 0 | H27: =INDEX('Yahoo!ファイナンス'!G:G, ROW()*3-10) -> 0 | I27: 0 | J27: =INDEX('Yahoo!ファイナンス'!H:H, ROW()*3-10) -> 0 | K27: --- | L27: =INDEX('Yahoo!ファイナンス'!J:J, ROW()*3-10) -> 0 | M27: 0 | N27: 0 | O27: 0
A28: 25 | B28: =INDEX('Yahoo!ファイナンス'!C:C, ROW()*3-10) -> 0 | C28: =INDEX('Yahoo!ファイナンス'!C:C, ROW()*3-9) -> 0 | D28: =INDEX('Yahoo!ファイナンス'!C:C, ROW()*3-8) -> 0 | E28: =INDEX('Yahoo!ファイナンス'!D:D, ROW()*3-10) -> 0 | F28: =INDEX('Yahoo!ファイナンス'!E:E, ROW()*3-10) -> 0 | G28: =INDEX('Yahoo!ファイナンス'!F:F, ROW()*3-10) -> 0 | H28: =INDEX('Yahoo!ファイナンス'!G:G, ROW()*3-10) -> 0 | I28: 0 | J28: =INDEX('Yahoo!ファイナンス'!H:H, ROW()*3-10) -> 0 | K28: --- | L28: =INDEX('Yahoo!ファイナンス'!J:J, ROW()*3-10) -> 0 | M28: 0 | N28: 0 | O28: 0
A29: 26 | B29: =INDEX('Yahoo!ファイナンス'!C:C, ROW()*3-10) -> 0 | C29: =INDEX('Yahoo!ファイナンス'!C:C, ROW()*3-9) -> 0 | D29: =INDEX('Yahoo!ファイナンス'!C:C, ROW()*3-8) -> 0 | E29: =INDEX('Yahoo!ファイナンス'!D:D, ROW()*3-10) -> 0 | F29: =INDEX('Yahoo!ファイナンス'!E:E, ROW()*3-10) -> 0 | G29: =INDEX('Yahoo!ファイナンス'!F:F, ROW()*3-10) -> 0 | H29: =INDEX('Yahoo!ファイナンス'!G:G, ROW()*3-10) -> 0 | I29: 0 | J29: =INDEX('Yahoo!ファイナンス'!H:H, ROW()*3-10) -> 0 | K29: --- | L29: =INDEX('Yahoo!ファイナンス'!J:J, ROW()*3-10) -> 0 | M29: 0 | N29: 0 | O29: 0
A30: 27 | B30: =INDEX('Yahoo!ファイナンス'!C:C, ROW()*3-10) -> 0 | C30: =INDEX('Yahoo!ファイナンス'!C:C, ROW()*3-9) -> 0 | D30: =INDEX('Yahoo!ファイナンス'!C:C, ROW()*3-8) -> 0 | E30: =INDEX('Yahoo!ファイナンス'!D:D, ROW()*3-10) -> 0 | F30: =INDEX('Yahoo!ファイナンス'!E:E, ROW()*3-10) -> 0 | G30: =INDEX('Yahoo!ファイナンス'!F:F, ROW()*3-10) -> 0 | H30: =INDEX('Yahoo!ファイナンス'!G:G, ROW()*3-10) -> 0 | I30: 0 | J30: =INDEX('Yahoo!ファイナンス'!H:H, ROW()*3-10) -> 0 | K30: --- | L30: =INDEX('Yahoo!ファイナンス'!J:J, ROW()*3-10) -> 0 | M30: 0 | N30: 0 | O30: 0
A31: 28 | B31: =INDEX('Yahoo!ファイナンス'!C:C, ROW()*3-10) -> 0 | C31: =INDEX('Yahoo!ファイナンス'!C:C, ROW()*3-9) -> 0 | D31: =INDEX('Yahoo!ファイナンス'!C:C, ROW()*3-8) -> 0 | E31: =INDEX('Yahoo!ファイナンス'!D:D, ROW()*3-10) -> 0 | F31: =INDEX('Yahoo!ファイナンス'!E:E, ROW()*3-10) -> 0 | G31: =INDEX('Yahoo!ファイナンス'!F:F, ROW()*3-10) -> 0 | H31: =INDEX('Yahoo!ファイナンス'!G:G, ROW()*3-10) -> 0 | I31: 0 | J31: =INDEX('Yahoo!ファイナンス'!H:H, ROW()*3-10) -> 0 | K31: --- | L31: =INDEX('Yahoo!ファイナンス'!J:J, ROW()*3-10) -> 0 | M31: 0 | N31: 0 | O31: 0
A32: 29 | B32: =INDEX('Yahoo!ファイナンス'!C:C, ROW()*3-10) -> 0 | C32: =INDEX('Yahoo!ファイナンス'!C:C, ROW()*3-9) -> 0 | D32: =INDEX('Yahoo!ファイナンス'!C:C, ROW()*3-8) -> 0 | E32: =INDEX('Yahoo!ファイナンス'!D:D, ROW()*3-10) -> 0 | F32: =INDEX('Yahoo!ファイナンス'!E:E, ROW()*3-10) -> 0 | G32: =INDEX('Yahoo!ファイナンス'!F:F, ROW()*3-10) -> 0 | H32: =INDEX('Yahoo!ファイナンス'!G:G, ROW()*3-10) -> 0 | I32: 0 | J32: =INDEX('Yahoo!ファイナンス'!H:H, ROW()*3-10) -> 0 | K32: --- | L32: =INDEX('Yahoo!ファイナンス'!J:J, ROW()*3-10) -> 0 | M32: 0 | N32: 0 | O32: 0
A33: 30 | B33: =INDEX('Yahoo!ファイナンス'!C:C, ROW()*3-10) -> 0 | C33: =INDEX('Yahoo!ファイナンス'!C:C, ROW()*3-9) -> 0 | D33: =INDEX('Yahoo!ファイナンス'!C:C, ROW()*3-8) -> 0 | E33: =INDEX('Yahoo!ファイナンス'!D:D, ROW()*3-10) -> 0 | F33: =INDEX('Yahoo!ファイナンス'!E:E, ROW()*3-10) -> 0 | G33: =INDEX('Yahoo!ファイナンス'!F:F, ROW()*3-10) -> 0 | H33: =INDEX('Yahoo!ファイナンス'!G:G, ROW()*3-10) -> 0 | I33: 0 | J33: =INDEX('Yahoo!ファイナンス'!H:H, ROW()*3-10) -> 0 | K33: --- | L33: =INDEX('Yahoo!ファイナンス'!J:J, ROW()*3-10) -> 0 | M33: 0 | N33: 0 | O33: 0
A34: 31 | B34: =INDEX('Yahoo!ファイナンス'!C:C, ROW()*3-10) -> 0 | C34: =INDEX('Yahoo!ファイナンス'!C:C, ROW()*3-9) -> 0 | D34: =INDEX('Yahoo!ファイナンス'!C:C, ROW()*3-8) -> 0 | E34: =INDEX('Yahoo!ファイナンス'!D:D, ROW()*3-10) -> 0 | F34: =INDEX('Yahoo!ファイナンス'!E:E, ROW()*3-10) -> 0 | G34: =INDEX('Yahoo!ファイナンス'!F:F, ROW()*3-10) -> 0 | H34: =INDEX('Yahoo!ファイナンス'!G:G, ROW()*3-10) -> 0 | I34: 0 | J34: =INDEX('Yahoo!ファイナンス'!H:H, ROW()*3-10) -> 0 | K34: --- | L34: =INDEX('Yahoo!ファイナンス'!J:J, ROW()*3-10) -> 0 | M34: 0 | N34: 0 | O34: 0
A35: 32 | B35: =INDEX('Yahoo!ファイナンス'!C:C, ROW()*3-10) -> 0 | C35: =INDEX('Yahoo!ファイナンス'!C:C, ROW()*3-9) -> 0 | D35: =INDEX('Yahoo!ファイナンス'!C:C, ROW()*3-8) -> 0 | E35: =INDEX('Yahoo!ファイナンス'!D:D, ROW()*3-10) -> 0 | F35: =INDEX('Yahoo!ファイナンス'!E:E, ROW()*3-10) -> 0 | G35: =INDEX('Yahoo!ファイナンス'!F:F, ROW()*3-10) -> 0 | H35: =INDEX('Yahoo!ファイナンス'!G:G, ROW()*3-10) -> 0 | I35: 0 | J35: =INDEX('Yahoo!ファイナンス'!H:H, ROW()*3-10) -> 0 | K35: --- | L35: =INDEX('Yahoo!ファイナンス'!J:J, ROW()*3-10) -> 0 | M35: 0 | N35: 0 | O35: 0
A36: 33 | B36: =INDEX('Yahoo!ファイナンス'!C:C, ROW()*3-10) -> 0 | C36: =INDEX('Yahoo!ファイナンス'!C:C, ROW()*3-9) -> 0 | D36: =INDEX('Yahoo!ファイナンス'!C:C, ROW()*3-8) -> 0 | E36: =INDEX('Yahoo!ファイナンス'!D:D, ROW()*3-10) -> 0 | F36: =INDEX('Yahoo!ファイナンス'!E:E, ROW()*3-10) -> 0 | G36: =INDEX('Yahoo!ファイナンス'!F:F, ROW()*3-10) -> 0 | H36: =INDEX('Yahoo!ファイナンス'!G:G, ROW()*3-10) -> 0 | I36: 0 | J36: =INDEX('Yahoo!ファイナンス'!H:H, ROW()*3-10) -> 0 | K36: --- | L36: =INDEX('Yahoo!ファイナンス'!J:J, ROW()*3-10) -> 0 | M36: 0 | N36: 0 | O36: 0
A37: 34 | B37: =INDEX('Yahoo!ファイナンス'!C:C, ROW()*3-10) -> 0 | C37: =INDEX('Yahoo!ファイナンス'!C:C, ROW()*3-9) -> 0 | D37: =INDEX('Yahoo!ファイナンス'!C:C, ROW()*3-8) -> 0 | E37: =INDEX('Yahoo!ファイナンス'!D:D, ROW()*3-10) -> 0 | F37: =INDEX('Yahoo!ファイナンス'!E:E, ROW()*3-10) -> 0 | G37: =INDEX('Yahoo!ファイナンス'!F:F, ROW()*3-10) -> 0 | H37: =INDEX('Yahoo!ファイナンス'!G:G, ROW()*3-10) -> 0 | I37: 0 | J37: =INDEX('Yahoo!ファイナンス'!H:H, ROW()*3-10) -> 0 | K37: --- | L37: =INDEX('Yahoo!ファイナンス'!J:J, ROW()*3-10) -> 0 | M37: 0 | N37: 0 | O37: 0
A38: 35 | B38: =INDEX('Yahoo!ファイナンス'!C:C, ROW()*3-10) -> 0 | C38: =INDEX('Yahoo!ファイナンス'!C:C, ROW()*3-9) -> 0 | D38: =INDEX('Yahoo!ファイナンス'!C:C, ROW()*3-8) -> 0 | E38: =INDEX('Yahoo!ファイナンス'!D:D, ROW()*3-10) -> 0 | F38: =INDEX('Yahoo!ファイナンス'!E:E, ROW()*3-10) -> 0 | G38: =INDEX('Yahoo!ファイナンス'!F:F, ROW()*3-10) -> 0 | H38: =INDEX('Yahoo!ファイナンス'!G:G, ROW()*3-10) -> 0 | I38: 0 | J38: =INDEX('Yahoo!ファイナンス'!H:H, ROW()*3-10) -> 0 | K38: --- | L38: =INDEX('Yahoo!ファイナンス'!J:J, ROW()*3-10) -> 0 | M38: 0 | N38: 0 | O38: 0
A39: 36 | B39: =INDEX('Yahoo!ファイナンス'!C:C, ROW()*3-10) -> 0 | C39: =INDEX('Yahoo!ファイナンス'!C:C, ROW()*3-9) -> 0 | D39: =INDEX('Yahoo!ファイナンス'!C:C, ROW()*3-8) -> 0 | E39: =INDEX('Yahoo!ファイナンス'!D:D, ROW()*3-10) -> 0 | F39: =INDEX('Yahoo!ファイナンス'!E:E, ROW()*3-10) -> 0 | G39: =INDEX('Yahoo!ファイナンス'!F:F, ROW()*3-10) -> 0 | H39: =INDEX('Yahoo!ファイナンス'!G:G, ROW()*3-10) -> 0 | I39: 0 | J39: =INDEX('Yahoo!ファイナンス'!H:H, ROW()*3-10) -> 0 | K39: --- | L39: =INDEX('Yahoo!ファイナンス'!J:J, ROW()*3-10) -> 0 | M39: 0 | N39: 0 | O39: 0
A40: 37 | B40: =INDEX('Yahoo!ファイナンス'!C:C, ROW()*3-10) -> 0 | C40: =INDEX('Yahoo!ファイナンス'!C:C, ROW()*3-9) -> 0 | D40: =INDEX('Yahoo!ファイナンス'!C:C, ROW()*3-8) -> 0 | E40: =INDEX('Yahoo!ファイナンス'!D:D, ROW()*3-10) -> 0 | F40: =INDEX('Yahoo!ファイナンス'!E:E, ROW()*3-10) -> 0 | G40: =INDEX('Yahoo!ファイナンス'!F:F, ROW()*3-10) -> 0 | H40: =INDEX('Yahoo!ファイナンス'!G:G, ROW()*3-10) -> 0 | I40: 0 | J40: =INDEX('Yahoo!ファイナンス'!H:H, ROW()*3-10) -> 0 | K40: --- | L40: =INDEX('Yahoo!ファイナンス'!J:J, ROW()*3-10) -> 0 | M40: 0 | N40: 0 | O40: 0
A41: 38 | B41: =INDEX('Yahoo!ファイナンス'!C:C, ROW()*3-10) -> 0 | C41: =INDEX('Yahoo!ファイナンス'!C:C, ROW()*3-9) -> 0 | D41: =INDEX('Yahoo!ファイナンス'!C:C, ROW()*3-8) -> 0 | E41: =INDEX('Yahoo!ファイナンス'!D:D, ROW()*3-10) -> 0 | F41: =INDEX('Yahoo!ファイナンス'!E:E, ROW()*3-10) -> 0 | G41: =INDEX('Yahoo!ファイナンス'!F:F, ROW()*3-10) -> 0 | H41: =INDEX('Yahoo!ファイナンス'!G:G, ROW()*3-10) -> 0 | I41: 0 | J41: =INDEX('Yahoo!ファイナンス'!H:H, ROW()*3-10) -> 0 | K41: --- | L41: =INDEX('Yahoo!ファイナンス'!J:J, ROW()*3-10) -> 0 | M41: 0 | N41: 0 | O41: 0
A42: 39 | B42: =INDEX('Yahoo!ファイナンス'!C:C, ROW()*3-10) -> 0 | C42: =INDEX('Yahoo!ファイナンス'!C:C, ROW()*3-9) -> 0 | D42: =INDEX('Yahoo!ファイナンス'!C:C, ROW()*3-8) -> 0 | E42: =INDEX('Yahoo!ファイナンス'!D:D, ROW()*3-10) -> 0 | F42: =INDEX('Yahoo!ファイナンス'!E:E, ROW()*3-10) -> 0 | G42: =INDEX('Yahoo!ファイナンス'!F:F, ROW()*3-10) -> 0 | H42: =INDEX('Yahoo!ファイナンス'!G:G, ROW()*3-10) -> 0 | I42: 0 | J42: =INDEX('Yahoo!ファイナンス'!H:H, ROW()*3-10) -> 0 | K42: --- | L42: =INDEX('Yahoo!ファイナンス'!J:J, ROW()*3-10) -> 0 | M42: 0 | N42: 0 | O42: 0
A43: 40 | B43: =INDEX('Yahoo!ファイナンス'!C:C, ROW()*3-10) -> 0 | C43: =INDEX('Yahoo!ファイナンス'!C:C, ROW()*3-9) -> 0 | D43: =INDEX('Yahoo!ファイナンス'!C:C, ROW()*3-8) -> 0 | E43: =INDEX('Yahoo!ファイナンス'!D:D, ROW()*3-10) -> 0 | F43: =INDEX('Yahoo!ファイナンス'!E:E, ROW()*3-10) -> 0 | G43: =INDEX('Yahoo!ファイナンス'!F:F, ROW()*3-10) -> 0 | H43: =INDEX('Yahoo!ファイナンス'!G:G, ROW()*3-10) -> 0 | I43: 0 | J43: =INDEX('Yahoo!ファイナンス'!H:H, ROW()*3-10) -> 0 | K43: --- | L43: =INDEX('Yahoo!ファイナンス'!J:J, ROW()*3-10) -> 0 | M43: 0 | N43: 0 | O43: 0
A44: 41 | B44: =INDEX('Yahoo!ファイナンス'!C:C, ROW()*3-10) -> 0 | C44: =INDEX('Yahoo!ファイナンス'!C:C, ROW()*3-9) -> 0 | D44: =INDEX('Yahoo!ファイナンス'!C:C, ROW()*3-8) -> 0 | E44: =INDEX('Yahoo!ファイナンス'!D:D, ROW()*3-10) -> 0 | F44: =INDEX('Yahoo!ファイナンス'!E:E, ROW()*3-10) -> 0 | G44: =INDEX('Yahoo!ファイナンス'!F:F, ROW()*3-10) -> 0 | H44: =INDEX('Yahoo!ファイナンス'!G:G, ROW()*3-10) -> 0 | I44: 0 | J44: =INDEX('Yahoo!ファイナンス'!H:H, ROW()*3-10) -> 0 | K44: --- | L44: =INDEX('Yahoo!ファイナンス'!J:J, ROW()*3-10) -> 0 | M44: 0 | N44: 0 | O44: 0
A45: 42 | B45: =INDEX('Yahoo!ファイナンス'!C:C, ROW()*3-10) -> 0 | C45: =INDEX('Yahoo!ファイナンス'!C:C, ROW()*3-9) -> 0 | D45: =INDEX('Yahoo!ファイナンス'!C:C, ROW()*3-8) -> 0 | E45: =INDEX('Yahoo!ファイナンス'!D:D, ROW()*3-10) -> 0 | F45: =INDEX('Yahoo!ファイナンス'!E:E, ROW()*3-10) -> 0 | G45: =INDEX('Yahoo!ファイナンス'!F:F, ROW()*3-10) -> 0 | H45: =INDEX('Yahoo!ファイナンス'!G:G, ROW()*3-10) -> 0 | I45: 0 | J45: =INDEX('Yahoo!ファイナンス'!H:H, ROW()*3-10) -> 0 | K45: --- | L45: =INDEX('Yahoo!ファイナンス'!J:J, ROW()*3-10) -> 0 | M45: 0 | N45: 0 | O45: 0
A46: 43 | B46: =INDEX('Yahoo!ファイナンス'!C:C, ROW()*3-10) -> 0 | C46: =INDEX('Yahoo!ファイナンス'!C:C, ROW()*3-9) -> 0 | D46: =INDEX('Yahoo!ファイナンス'!C:C, ROW()*3-8) -> 0 | E46: =INDEX('Yahoo!ファイナンス'!D:D, ROW()*3-10) -> 0 | F46: =INDEX('Yahoo!ファイナンス'!E:E, ROW()*3-10) -> 0 | G46: =INDEX('Yahoo!ファイナンス'!F:F, ROW()*3-10) -> 0 | H46: =INDEX('Yahoo!ファイナンス'!G:G, ROW()*3-10) -> 0 | I46: 0 | J46: =INDEX('Yahoo!ファイナンス'!H:H, ROW()*3-10) -> 0 | K46: --- | L46: =INDEX('Yahoo!ファイナンス'!J:J, ROW()*3-10) -> 0 | M46: 0 | N46: 0 | O46: 0
A47: 44 | B47: =INDEX('Yahoo!ファイナンス'!C:C, ROW()*3-10) -> 0 | C47: =INDEX('Yahoo!ファイナンス'!C:C, ROW()*3-9) -> 0 | D47: =INDEX('Yahoo!ファイナンス'!C:C, ROW()*3-8) -> 0 | E47: =INDEX('Yahoo!ファイナンス'!D:D, ROW()*3-10) -> 0 | F47: =INDEX('Yahoo!ファイナンス'!E:E, ROW()*3-10) -> 0 | G47: =INDEX('Yahoo!ファイナンス'!F:F, ROW()*3-10) -> 0 | H47: =INDEX('Yahoo!ファイナンス'!G:G, ROW()*3-10) -> 0 | I47: 0 | J47: =INDEX('Yahoo!ファイナンス'!H:H, ROW()*3-10) -> 0 | K47: --- | L47: =INDEX('Yahoo!ファイナンス'!J:J, ROW()*3-10) -> 0 | M47: 0 | N47: 0 | O47: 0
A48: 45 | B48: =INDEX('Yahoo!ファイナンス'!C:C, ROW()*3-10) -> 0 | C48: =INDEX('Yahoo!ファイナンス'!C:C, ROW()*3-9) -> 0 | D48: =INDEX('Yahoo!ファイナンス'!C:C, ROW()*3-8) -> 0 | E48: =INDEX('Yahoo!ファイナンス'!D:D, ROW()*3-10) -> 0 | F48: =INDEX('Yahoo!ファイナンス'!E:E, ROW()*3-10) -> 0 | G48: =INDEX('Yahoo!ファイナンス'!F:F, ROW()*3-10) -> 0 | H48: =INDEX('Yahoo!ファイナンス'!G:G, ROW()*3-10) -> 0 | I48: 0 | J48: =INDEX('Yahoo!ファイナンス'!H:H, ROW()*3-10) -> 0 | K48: --- | L48: =INDEX('Yahoo!ファイナンス'!J:J, ROW()*3-10) -> 0 | M48: 0 | N48: 0 | O48: 0
A49: 46 | B49: =INDEX('Yahoo!ファイナンス'!C:C, ROW()*3-10) -> 0 | C49: =INDEX('Yahoo!ファイナンス'!C:C, ROW()*3-9) -> 0 | D49: =INDEX('Yahoo!ファイナンス'!C:C, ROW()*3-8) -> 0 | E49: =INDEX('Yahoo!ファイナンス'!D:D, ROW()*3-10) -> 0 | F49: =INDEX('Yahoo!ファイナンス'!E:E, ROW()*3-10) -> 0 | G49: =INDEX('Yahoo!ファイナンス'!F:F, ROW()*3-10) -> 0 | H49: =INDEX('Yahoo!ファイナンス'!G:G, ROW()*3-10) -> 0 | I49: 0 | J49: =INDEX('Yahoo!ファイナンス'!H:H, ROW()*3-10) -> 0 | K49: --- | L49: =INDEX('Yahoo!ファイナンス'!J:J, ROW()*3-10) -> 0 | M49: 0 | N49: 0 | O49: 0
A50: 47 | B50: =INDEX('Yahoo!ファイナンス'!C:C, ROW()*3-10) -> 0 | C50: =INDEX('Yahoo!ファイナンス'!C:C, ROW()*3-9) -> 0 | D50: =INDEX('Yahoo!ファイナンス'!C:C, ROW()*3-8) -> 0 | E50: =INDEX('Yahoo!ファイナンス'!D:D, ROW()*3-10) -> 0 | F50: =INDEX('Yahoo!ファイナンス'!E:E, ROW()*3-10) -> 0 | G50: =INDEX('Yahoo!ファイナンス'!F:F, ROW()*3-10) -> 0 | H50: =INDEX('Yahoo!ファイナンス'!G:G, ROW()*3-10) -> 0 | I50: 0 | J50: =INDEX('Yahoo!ファイナンス'!H:H, ROW()*3-10) -> 0 | K50: --- | L50: =INDEX('Yahoo!ファイナンス'!J:J, ROW()*3-10) -> 0 | M50: 0 | N50: 0 | O50: 0
A51: 48 | B51: =INDEX('Yahoo!ファイナンス'!C:C, ROW()*3-10) -> 0 | C51: =INDEX('Yahoo!ファイナンス'!C:C, ROW()*3-9) -> 0 | D51: =INDEX('Yahoo!ファイナンス'!C:C, ROW()*3-8) -> 0 | E51: =INDEX('Yahoo!ファイナンス'!D:D, ROW()*3-10) -> 0 | F51: =INDEX('Yahoo!ファイナンス'!E:E, ROW()*3-10) -> 0 | G51: =INDEX('Yahoo!ファイナンス'!F:F, ROW()*3-10) -> 0 | H51: =INDEX('Yahoo!ファイナンス'!G:G, ROW()*3-10) -> 0 | I51: 0 | J51: =INDEX('Yahoo!ファイナンス'!H:H, ROW()*3-10) -> 0 | K51: --- | L51: =INDEX('Yahoo!ファイナンス'!J:J, ROW()*3-10) -> 0 | M51: 0 | N51: 0 | O51: 0
A52: 49 | B52: =INDEX('Yahoo!ファイナンス'!C:C, ROW()*3-10) -> 0 | C52: =INDEX('Yahoo!ファイナンス'!C:C, ROW()*3-9) -> 0 | D52: =INDEX('Yahoo!ファイナンス'!C:C, ROW()*3-8) -> 0 | E52: =INDEX('Yahoo!ファイナンス'!D:D, ROW()*3-10) -> 0 | F52: =INDEX('Yahoo!ファイナンス'!E:E, ROW()*3-10) -> 0 | G52: =INDEX('Yahoo!ファイナンス'!F:F, ROW()*3-10) -> 0 | H52: =INDEX('Yahoo!ファイナンス'!G:G, ROW()*3-10) -> 0 | I52: 0 | J52: =INDEX('Yahoo!ファイナンス'!H:H, ROW()*3-10) -> 0 | K52: --- | L52: =INDEX('Yahoo!ファイナンス'!J:J, ROW()*3-10) -> 0 | M52: 0 | N52: 0 | O52: 0
A53: 50 | B53: =INDEX('Yahoo!ファイナンス'!C:C, ROW()*3-10) -> 0 | C53: =INDEX('Yahoo!ファイナンス'!C:C, ROW()*3-9) -> 0 | D53: =INDEX('Yahoo!ファイナンス'!C:C, ROW()*3-8) -> 0 | E53: =INDEX('Yahoo!ファイナンス'!D:D, ROW()*3-10) -> 0 | F53: =INDEX('Yahoo!ファイナンス'!E:E, ROW()*3-10) -> 0 | G53: =INDEX('Yahoo!ファイナンス'!F:F, ROW()*3-10) -> 0 | H53: =INDEX('Yahoo!ファイナンス'!G:G, ROW()*3-10) -> 0 | I53: 0 | J53: =INDEX('Yahoo!ファイナンス'!H:H, ROW()*3-10) -> 0 | K53: --- | L53: =INDEX('Yahoo!ファイナンス'!J:J, ROW()*3-10) -> 0 | M53: 0 | N53: 0 | O53: 0
